bitfinex-derivatives/quotes_BTCF0:USTF0_20260207
["timestamp","ask_amount","ask_price","bid_price","bid_amount"]
[1770450259800,0.014575,68654.0,68626.0,0.014581]
[1770450260206,0.56272007,68661.0,68621.0,0.50061685]
[1770450260402,0.014577,68648.0,68621.0,0.51519885]
[1770450260707,0.56272007,68661.0,68624.0,0.014582]
[1770450261199,0.014576,68651.0,68624.0,0.014582]
[1770450261396,0.014574,68659.0,68626.0,0.52603585]
[1770450261599,0.56272007,68673.0,68632.0,0.01458]
[1770450261798,0.56272007,68673.0,68632.0,0.52603585]
[1770450262106,0.014573,68663.0,68638.0,0.014579]
[1770450262300,0.014573,68664.0,68638.0,0.014578]
[1770450262500,0.014572,68668.0,68640.0,0.014578]
[1770450262704,0.56272007,68673.0,68635.0,0.014579]
[1770450263108,0.014573,68665.0,68638.0,0.014578]
[1770450263304,0.56272007,68673.0,68634.0,0.014579]
[1770450263697,0.56272007,68673.0,68637.0,0.014579]
[1770450263899,0.56272007,68659.0,68626.0,0.17308383]
[1770450264099,0.56272007,68659.0,68625.0,0.014581]
[1770450264501,0.56272007,68659.0,68620.0,0.17308383]
[1770450264807,0.56272007,68659.0,68620.0,0.014582]
[1770450265199,0.014577,68645.0,68620.0,0.014582]
[1770450265399,0.56272007,68659.0,68619.0,0.52603585]
[1770450265703,0.014576,68650.0,68626.0,0.014581]
[1770450265898,0.56272007,68659.0,68626.0,0.014581]
[1770450265899,0.56272007,68659.0,68626.0,0.52603585]
[1770450266094,0.014575,68654.0,68628.0,0.014581]
[1770450266701,0.014573,68663.0,68624.0,0.52603585]
[1770450266894,0.014572,68668.0,68636.0,0.52603585]
[1770450267096,0.014573,68665.0,68637.0,0.014579]
[1770450267500,0.06038547,68657.0,68636.0,0.52603585]
[1770450267696,0.014573,68665.0,68636.0,0.52603585]
[1770450268105,0.014573,68665.0,68637.0,0.014579]
[1770450268305,0.56272007,68667.0,68626.0,0.69911968]
[1770450268507,0.56272007,68667.0,68626.0,0.52603585]
[1770450268702,0.56272007,68662.0,68620.0,0.014582]
[1770450268908,0.014575,68654.0,68620.0,0.52603585]
[1770450269110,0.014575,68654.0,68628.0,0.014581]
[1770450269405,0.014576,68650.0,68624.0,0.014581]
[1770450269710,0.014577,68647.0,68620.0,0.52603585]
[1770450269905,0.014577,68647.0,68597.0,0.36087611]
[1770450269906,0.014575,68653.0,68610.0,0.17308383]
[1770450270209,0.01458,68633.0,68611.0,0.014584]
[1770450270407,0.01458,68633.0,68608.0,0.52603585]
[1770450270408,0.56272007,68650.0,68610.0,0.014585]
[1770450270616,0.56272007,68645.0,68610.0,0.014585]
[1770450270800,0.01458,68633.0,68610.0,0.014585]
[1770450271000,0.01458,68633.0,68602.0,0.17308383]
[1770450271001,0.56272007,68643.0,68600.0,0.17308383]
[1770450271206,0.56272007,68643.0,68598.0,0.014587]
[1770450271207,0.56272007,68636.0,68598.0,0.014587]
[1770450271398,0.56272007,68636.0,68596.0,0.52603585]
[1770450271399,0.014583,68619.0,68597.0,0.014587]
[1770450271706,0.014578,68641.0,68606.0,0.52603585]
[1770450271910,0.014579,68638.0,68607.0,0.52603585]
[1770450272304,0.56272007,68648.0,68609.0,0.014585]
[1770450272509,0.56272007,68648.0,68607.0,0.54062085]
[1770450272707,0.57729507,68655.0,68613.0,0.014584]
[1770450272912,0.57729507,68655.0,68607.0,0.52603585]
[1770450272913,0.014579,68637.0,68612.0,0.52603585]
[1770450273111,0.01458,68634.0,68612.0,0.52603585]
[1770450273313,0.01458,68630.0,68605.0,0.17308383]
[1770450273514,0.01458,68634.0,68604.0,0.17308383]
[1770450273808,0.56272007,68642.0,68600.0,0.52603585]
[1770450273809,0.56272007,68642.0,68611.0,0.014584]
[1770450274014,0.014579,68636.0,68607.0,0.014585]
[1770450274309,0.56272007,68631.0,68591.0,0.21652952]
[1770450274510,0.56272007,68639.0,68598.0,0.52603585]
[1770450274711,0.56272007,68639.0,68599.0,0.014587]
[1770450275012,0.014582,68625.0,68599.0,0.014587]
[1770450275215,0.014582,68622.0,68598.0,0.52603585]
[1770450275613,0.014583,68619.0,68598.0,0.52603585]
[1770450275809,0.014582,68623.0,68594.0,0.014588]
[1770450276010,0.014582,68623.0,68586.0,0.56538774]
[1770450276211,0.57104494,68631.0,68594.0,0.014588]
[1770450276608,0.014582,68624.0,68597.0,0.014587]
[1770450277013,0.014582,68621.0,68592.0,0.014588]
[1770450277316,0.014582,68622.0,68592.0,0.014588]
[1770450277811,0.014582,68622.0,68595.0,0.014588]
[1770450278011,0.014583,68619.0,68591.0,0.014589]
[1770450278210,0.57104494,68631.0,68590.0,0.57997674]
[1770450278211,0.014583,68616.0,68590.0,0.57997674]
[1770450278515,0.57104494,68631.0,68594.0,0.014588]
[1770450278716,0.014582,68621.0,68594.0,0.014588]
[1770450278915,0.014582,68621.0,68590.0,0.57997674]
[1770450279110,0.014584,68615.0,68590.0,0.56538774]
[1770450279309,0.57104494,68631.0,68595.0,0.56538774]
[1770450279512,0.57104494,68631.0,68596.0,0.014588]
[1770450279710,0.01458,68633.0,68608.0,0.014585]
[1770450279913,0.01458,68633.0,68606.0,0.014585]
[1770450280114,0.57104494,68645.0,68605.0,0.56538774]
[1770450280314,0.01458,68630.0,68605.0,0.56538774]
[1770450280717,0.014582,68624.0,68598.0,0.014587]
[1770450280904,0.014582,68621.0,68593.0,0.014588]
[1770450281110,0.57104494,68632.0,68596.0,0.014587]
[1770450281306,0.014583,68618.0,68592.0,0.57997574]
[1770450281510,0.57104494,68632.0,68592.0,0.57997574]
[1770450281817,0.57104494,68627.0,68592.0,0.57997574]
[1770450282218,0.014583,68620.0,68595.0,0.014588]
[1770450282515,0.57104494,68627.0,68593.0,0.014588]
[1770450282717,0.014584,68614.0,68592.0,0.56538774]
[1770450283020,0.57104494,68623.0,68592.0,0.014588]
[1770450283217,0.014584,68613.0,68591.0,0.014589]
[1770450283718,0.014583,68617.0,68595.0,0.014588]
[1770450283919,0.014584,68614.0,68591.0,0.014588]
[1770450284113,0.014585,68608.0,68582.0,0.56538774]
[1770450284312,0.014585,68608.0,68583.0,0.01459]
[1770450284513,0.014585,68608.0,68578.0,0.21652952]
[1770450284720,0.014579,68635.0,43331.0,4e-05]
[1770450284721,0.57104494,68589.0,68552.0,0.56538774]
[1770450285018,0.57104494,68589.0,68555.0,0.014596]
[1770450285019,0.014591,68582.0,68555.0,0.014596]
[1770450285513,0.57104494,68589.0,68562.0,0.014595]
[1770450285514,0.014589,68588.0,68562.0,0.014595]
[1770450285713,0.01459,68585.0,68561.0,0.014595]
[1770450285915,0.01459,68583.0,68560.0,0.014595]
[1770450286216,0.01459,68587.0,68560.0,0.57998274]
[1770450286415,0.014588,68593.0,68566.0,0.014594]
[1770450286614,0.014588,68593.0,68560.0,0.56538774]
[1770450286615,0.57104494,68601.0,68560.0,0.56538774]
[1770450286813,0.014587,68599.0,68565.0,0.56538774]
[1770450287122,0.57104494,68601.0,68567.0,0.56538774]
[1770450287414,0.57104494,68601.0,68569.0,0.014593]
[1770450287613,0.57104494,68601.0,68567.0,0.56538774]
[1770450287809,0.57104494,68601.0,68571.0,0.014593]
[1770450288015,0.014587,68599.0,68574.0,0.014592]
[1770450288409,0.014588,68596.0,68571.0,0.56538774]
[1770450288616,0.014588,68593.0,68571.0,0.56538774]
[1770450288919,0.014586,68603.0,68576.0,0.56538774]
[1770450289318,0.01459,68585.0,68562.0,0.56538774]
[1770450289514,0.014589,68589.0,68562.0,0.56538774]
[1770450289714,0.01459,68585.0,68562.0,0.56538774]
[1770450290220,0.01459,68586.0,68562.0,0.56538774]
[1770450290418,0.57104494,68598.0,68562.0,0.56538774]
[1770450290716,0.014589,68588.0,68562.0,0.57998274]
[1770450290918,0.57104494,68598.0,68562.0,0.56538774]
[1770450291117,0.57104494,68610.0,68570.0,0.014593]
[1770450291420,0.014586,68606.0,68578.0,0.014591]
[1770450291720,0.014586,68603.0,68578.0,0.014591]
[1770450292018,0.014587,68600.0,68576.0,0.56538774]
[1770450292211,0.57104494,68610.0,68562.0,0.001]
[1770450292212,0.57104494,68610.0,68570.0,0.014593]
[1770450292412,0.014587,68601.0,68564.0,0.56097974]
[1770450292708,0.014587,68598.0,68570.0,0.014593]
[1770450292908,0.014586,68602.0,68578.0,0.014591]
[1770450293112,0.57104494,68610.0,68564.0,0.56097974]
[1770450293310,0.57104494,68610.0,68551.0,0.014597]
[1770450293311,0.57104494,68599.0,68538.0,0.073001]
[1770450293523,0.57104494,68599.0,68542.0,0.014599]
[1770450293524,0.57104494,68570.0,68542.0,0.014599]
[1770450293724,0.014594,68567.0,68537.0,0.58018774]
[1770450293921,0.014592,68573.0,68545.0,0.014598]
[1770450294118,0.57104494,68582.0,68541.0,0.56538774]
[1770450294321,0.014594,68565.0,68541.0,0.56538774]
[1770450294615,0.57104494,68574.0,68541.0,0.56538774]
[1770450294820,0.014594,68568.0,68542.0,0.014599]
[1770450296021,0.014593,68569.0,68541.0,0.57998674]
[1770450296219,0.014593,68569.0,68544.0,0.014598]
[1770450296519,0.014593,68569.0,68524.0,0.014603]
[1770450296520,0.01459,68587.0,68561.0,0.014595]
[1770450296720,0.57104494,68590.0,68547.0,0.56538774]
[1770450296721,0.57104494,68580.0,68547.0,0.56538774]
[1770450296918,0.014587,68598.0,68526.0,0.073013]
[1770450296919,0.014592,68573.0,68553.0,0.56538774]
[1770450297321,0.014592,68573.0,68545.0,0.014598]
[1770450297516,0.014593,68571.0,68545.0,0.014598]
[1770450298132,0.57104494,68582.0,68542.0,0.56538774]
[1770450298324,0.014595,68562.0,68542.0,0.56538774]
[1770450298515,0.57104494,68575.0,68548.0,0.014598]
[1770450298516,0.014592,68573.0,68548.0,0.014598]
[1770450298826,0.16359347,68590.0,68544.0,0.57998574]
[1770450298827,0.014593,68570.0,68544.0,0.57998574]
[1770450299023,0.014592,68574.0,68547.0,0.014598]
[1770450299218,0.014592,68574.0,68525.0,0.56538774]
[1770450299219,0.57104494,68574.0,68525.0,0.56538774]
[1770450299424,0.014595,68563.0,68537.0,0.56538774]
[1770450299624,0.014594,68564.0,68538.0,0.0146]
[1770450299827,0.014594,68568.0,68538.0,0.56538774]
[1770450300126,0.014593,68572.0,68538.0,0.56538774]
[1770450300317,0.57104494,68580.0,68537.0,0.0146]
[1770450300520,0.57104494,68580.0,68526.0,0.0002]
[1770450300521,0.57104494,68580.0,68531.0,0.56538774]
[1770450300726,0.014592,68574.0,68536.0,0.56538774]
[1770450300929,0.014594,68567.0,68542.0,0.56538774]
[1770450301223,0.014593,68572.0,68546.0,0.014598]
[1770450301623,0.014593,68569.0,68543.0,0.56538774]
[1770450301825,0.014596,68556.0,68523.0,0.56538774]
[1770450302020,0.014595,68560.0,68533.0,0.014601]
[1770450302226,0.014596,68557.0,68530.0,0.56538774]
[1770450302417,0.014597,68554.0,68530.0,0.56538774]
[1770450302920,0.014596,68558.0,68532.0,0.014601]
[1770450303126,0.014596,68558.0,68530.0,0.56538774]
[1770450303127,0.014596,68559.0,68531.0,0.014601]
[1770450303522,0.014596,68555.0,68530.0,0.56298874]
[1770450303923,0.014598,68550.0,68521.0,0.57999074]
[1770450304119,0.57104494,68557.0,68521.0,0.57999074]
[1770450304323,0.57104494,68557.0,68524.0,0.014603]
[1770450304528,0.57104494,68557.0,68521.0,0.56538774]
[1770450304529,0.014596,68556.0,68521.0,0.56538774]
[1770450304727,0.0146,68539.0,68520.0,0.0002]
[1770450304922,0.0146,68539.0,68510.0,0.57999374]
[1770450304923,0.014601,68534.0,68505.0,0.014607]
[1770450305119,0.57104494,68537.0,68508.0,0.014606]
[1770450305324,0.014602,68527.0,68501.0,0.56538774]
[1770450305531,0.014601,68531.0,68501.0,0.56538774]
[1770450305729,0.014601,68531.0,68496.0,0.014809]
[1770450305730,0.014603,68524.0,68496.0,0.0002]
[1770450306032,0.5647164,68532.0,68496.0,0.0002]
[1770450306331,0.014603,68524.0,68491.0,0.55178243]
[1770450306526,0.5647164,68529.0,68491.0,0.55178243]
[1770450306727,0.5647164,68526.0,68491.0,0.55178243]
[1770450307031,0.5647164,68522.0,68491.0,0.55178243]
[1770450307425,0.014606,68510.0,68486.0,0.0002]
[1770450307628,0.07301,68530.0,68467.0,0.55178243]
[1770450307629,0.5647164,68506.0,68467.0,0.55178243]
[1770450307925,0.5793234,68506.0,68480.0,0.0002]
[1770450308124,0.014607,68504.0,68480.0,0.0002]
[1770450308324,0.5647164,68503.0,68454.0,0.17355236]
[1770450308527,0.5647164,68509.0,68480.0,0.0002]
[1770450308726,0.5647164,68509.0,68480.0,0.56659443]
[1770450308727,0.014606,68509.0,68480.0,0.56659443]
[1770450308928,0.5647164,68521.0,68484.0,0.55178243]
[1770450308929,0.014605,68514.0,68484.0,0.55178243]
[1770450309128,0.014607,68507.0,68484.0,0.55178243]
[1770450309324,0.014606,68512.0,68484.0,0.55178243]
[1770450309523,0.014606,68509.0,68484.0,0.55178243]
[1770450309726,0.014608,68500.0,68468.0,0.55263986]
[1770450309924,0.014608,68500.0,68473.0,0.55263986]
[1770450310429,0.57729493,68494.0,68459.0,0.55263986]
[1770450310641,0.014612,68484.0,68459.0,0.55263986]
[1770450310825,0.014609,68498.0,68468.0,0.55263986]
[1770450311127,0.57729493,68502.0,68468.0,0.55263986]
[1770450311330,0.01461,68492.0,68468.0,0.55263986]
[1770450311631,0.014611,68485.0,68468.0,0.51263986]
[1770450311831,0.014611,68485.0,68456.0,0.55263986]
[1770450312025,0.01461,68489.0,68458.0,0.56725686]
[1770450312226,0.06038547,68484.0,68462.0,0.55263986]
[1770450312427,0.01461,68491.0,68465.0,0.55263986]
[1770450312822,0.01461,68491.0,68440.0,0.24665736]
[1770450312823,0.014612,68482.0,68453.0,0.55263986]
[1770450313028,0.014613,68479.0,68453.0,0.55263986]
[1770450313228,0.01461,68489.0,68453.0,0.55263986]
[1770450313531,0.014611,68486.0,68458.0,0.55263986]
[1770450314333,0.014612,68483.0,68458.0,0.55263986]
[1770450314531,0.014613,68479.0,68458.0,0.55263986]
[1770450314830,0.073039,68504.0,68458.0,0.55263986]
[1770450314831,0.014611,68484.0,68458.0,0.55263986]
[1770450315027,0.57729493,68494.0,68458.0,0.55263986]
[1770450315228,0.014614,68472.0,68444.0,0.55263986]
[1770450315527,0.014615,68469.0,68444.0,0.55263986]
[1770450316131,0.57729493,68479.0,68444.0,0.55263986]
[1770450316531,0.014615,68468.0,68444.0,0.55263986]
[1770450316734,0.57729493,68467.0,68434.0,0.55263986]
[1770450317033,0.57729493,68478.0,68436.0,0.55263986]
[1770450317240,0.014616,68462.0,68436.0,0.55263986]
[1770450317935,0.57729493,68461.0,68420.0,0.55263986]
[1770450318131,0.014618,68452.0,68421.0,0.55263986]
[1770450318538,0.014614,68472.0,68421.0,0.55263986]
[1770450318539,0.57729493,68453.0,68421.0,0.55263986]
[1770450318730,0.01462,68446.0,68421.0,0.55263986]
[1770450319133,0.01462,68442.0,68421.0,0.55263986]
[1770450319333,0.00010998,68441.0,68421.0,0.53463986]
[1770450319629,0.57729493,68449.0,68414.0,0.01353751]
[1770450320027,0.014623,68432.0,68414.0,0.01353751]
[1770450320230,0.014622,68437.0,68414.0,0.01353751]
[1770450320639,0.014622,68436.0,68414.0,0.01353751]
[1770450320942,0.073086,68459.0,68414.0,0.01353751]
[1770450320943,0.014621,68440.0,68417.0,0.55263986]
[1770450321635,0.01462,68445.0,68417.0,0.55263986]
[1770450321842,0.01462,68443.0,68417.0,0.55263986]
[1770450322342,0.014622,68436.0,68414.0,0.01353751]
[1770450322643,0.014623,68430.0,68414.0,0.01353751]
[1770450322939,0.57729493,68434.0,68395.0,0.55263986]
[1770450323242,0.014625,68420.0,68395.0,0.55263986]
[1770450323438,0.57729493,68434.0,68395.0,0.55263986]
[1770450323439,0.014626,68416.0,68395.0,0.55263986]
[1770450323736,0.014626,68416.0,68362.0,0.014637]
[1770450323737,0.014628,68406.0,68363.0,0.55263986]
[1770450323942,0.57729493,68413.0,68380.0,0.55263986]
[1770450323943,0.014627,68412.0,68380.0,0.55263986]
[1770450324144,0.014627,68412.0,68383.0,0.014633]
[1770450324341,0.57729493,68413.0,68382.0,0.55263986]
[1770450324543,0.014628,68407.0,68382.0,0.55263986]
[1770450324744,0.014627,68411.0,68383.0,0.014633]
[1770450325040,0.57729493,68413.0,68383.0,0.56727286]
[1770450325245,0.014626,68415.0,68383.0,0.56727286]
[1770450325542,0.014627,68412.0,68383.0,0.56727286]
[1770450326847,0.014627,68413.0,68383.0,0.55263986]
[1770450327141,0.57729493,68409.0,68371.0,0.54163986]
[1770450327644,0.06038547,68391.0,68371.0,0.54163986]
[1770450327846,0.06038547,68391.0,68371.0,0.55627486]
[1770450328642,0.06038547,68391.0,68371.0,0.54163986]
[1770450328945,0.57729493,68389.0,68354.0,0.55263986]
[1770450329140,0.57729493,68387.0,68354.0,0.55263986]
[1770450329341,0.014632,68386.0,68354.0,0.55263986]
[1770450329846,0.014633,68383.0,68354.0,0.55263986]
[1770450330035,0.014636,68370.0,68354.0,0.001]
[1770450330240,0.014634,68380.0,68354.0,0.001]
[1770450330444,0.57729493,68392.0,68354.0,0.55363986]
[1770450330445,0.014633,68385.0,68354.0,0.55363986]
[1770450330652,0.014632,68386.0,68354.0,0.56827886]
[1770450330943,0.014632,68386.0,68359.0,0.55263986]
[1770450331141,0.014633,68384.0,68359.0,0.55263986]
[1770450331448,0.57729493,68392.0,68359.0,0.55263986]
[1770450331641,0.00010998,68391.0,68359.0,0.55263986]
[1770450331948,0.57729493,68392.0,68359.0,0.55263986]
[1770450332352,0.57729493,68377.0,68330.0,0.014644]
[1770450332644,0.014638,68360.0,68329.0,0.56728386]
[1770450333343,0.57729493,68370.0,68341.0,0.014642]
[1770450333537,0.087786,68394.0,68341.0,0.55263986]
[1770450333538,0.014636,68369.0,68341.0,0.55263986]
[1770450333744,0.57729493,68389.0,68341.0,0.55263986]
[1770450333745,0.57729493,68379.0,68341.0,0.55263986]
[1770450333940,0.073162,68388.0,68312.0,0.014648]
[1770450333941,0.57729493,68377.0,68330.0,0.55263986]
[1770450334142,0.57729493,68362.0,68331.0,0.014644]
[1770450334337,0.014637,68364.0,68330.0,0.55263986]
[1770450334738,0.014638,68362.0,68333.0,0.53163986]
[1770450334938,0.57729493,68374.0,68333.0,0.53163986]
[1770450335136,0.014639,68353.0,68333.0,0.53163986]
[1770450335344,0.014639,68355.0,68321.0,0.55263986]
[1770450335537,0.57729493,68362.0,68321.0,0.55263986]
[1770450335740,0.01464,68350.0,68321.0,0.55263986]
[1770450336037,0.014639,68355.0,68326.0,0.5276462]
[1770450336746,0.01464,68353.0,68326.0,0.5276462]
[1770450337336,0.01464,68349.0,68326.0,0.5276462]
[1770450337536,0.01464,68349.0,68326.0,0.5286462]
[1770450337844,0.014641,68346.0,68326.0,0.5286462]
[1770450338041,0.01464,68350.0,68326.0,0.5286462]
[1770450338236,0.014641,68346.0,68326.0,0.5286462]
[1770450338548,0.014641,68346.0,68317.0,0.014647]
[1770450338549,0.014641,68344.0,68317.0,0.5276462]
[1770450338943,0.56399232,68354.0,68319.0,0.5276462]
[1770450339347,0.014642,68344.0,68319.0,0.5276462]
[1770450339643,0.014641,68348.0,68321.0,0.5276462]
[1770450339848,0.073184,68367.0,68321.0,0.5276462]
[1770450339849,0.014641,68347.0,68321.0,0.5276462]
[1770450340040,0.014642,68343.0,68321.0,0.5276462]
[1770450340237,0.01464,68353.0,68325.0,0.5276462]
[1770450340439,0.01464,68349.0,68325.0,0.5276462]
[1770450340649,0.014639,68354.0,68325.0,0.5276462]
[1770450340943,0.56399232,68365.0,68313.0,0.5276462]
[1770450341247,0.014639,68353.0,68326.0,0.5276462]
[1770450341453,0.014641,68347.0,68326.0,0.5276462]
[1770450342141,0.56399232,68361.0,68326.0,0.5276462]
[1770450342445,0.06038547,68337.0,68326.0,0.5276462]
[1770450342744,0.06038547,68337.0,68321.0,0.015646]
[1770450342942,0.014641,68347.0,68321.0,0.5222922]
[1770450343150,0.56399232,68369.0,68328.0,0.5276462]
[1770450343348,0.01464,68350.0,68330.0,0.5276462]
[1770450343541,0.014638,68360.0,68330.0,0.5276462]
[1770450343948,0.01464,68353.0,68333.0,0.5276462]
[1770450344244,0.01464,68351.0,68333.0,0.5276462]
[1770450344549,0.01464,68350.0,68333.0,0.5276462]
[1770450344749,0.014641,68347.0,68321.0,0.015646]
[1770450345143,0.014642,68341.0,68321.0,0.001]
[1770450345342,0.56399232,68353.0,68321.0,0.001]
[1770450345543,0.014641,68344.0,68318.0,0.5276462]
[1770450345749,0.56399232,68353.0,68318.0,0.52745443]
[1770450345950,0.014642,68340.0,68318.0,0.52745443]
[1770450346550,0.014644,68333.0,68307.0,0.5422952]
[1770450346751,0.014643,68337.0,68313.0,0.5422942]
[1770450347048,0.56399232,68344.0,68313.0,0.5276462]
[1770450347348,0.56399232,68344.0,68318.0,0.001]
[1770450347543,0.014645,68325.0,68318.0,0.001]
[1770450347743,0.0001057,68324.0,68302.0,0.5276462]
[1770450347944,0.014646,68322.0,68302.0,0.5276462]
[1770450348657,0.014646,68322.0,68292.0,0.00013182]
[1770450348658,0.56399232,68352.0,68313.0,0.5276462]
[1770450348848,0.014644,68333.0,68313.0,0.5276462]
[1770450349553,0.014642,68341.0,68318.0,0.5276462]
[1770450349756,0.56399232,68365.0,68320.0,0.5276462]
[1770450350058,0.014642,68343.0,68327.0,0.5276462]
[1770450350350,0.014642,68340.0,68317.0,0.5422932]
[1770450350551,0.014641,68345.0,68319.0,0.5276462]
[1770450350847,0.01464,68349.0,68321.0,0.5276462]
[1770450351155,0.56399232,68348.0,68313.0,0.001]
[1770450351756,0.014644,68333.0,68313.0,0.5286462]
[1770450351950,0.56399232,68345.0,68313.0,0.5276462]
[1770450352251,0.014644,68331.0,68313.0,0.5276462]
[1770450352461,0.014644,68331.0,68309.0,0.014649]
[1770450352462,0.014641,68344.0,68320.0,0.5276462]
[1770450352849,0.001,68348.0,68320.0,0.5276462]
[1770450353054,0.014643,68336.0,68320.0,0.5276462]
[1770450353359,0.014642,68340.0,68320.0,0.5276462]
[1770450353557,0.56399232,68356.0,68320.0,0.5276462]
[1770450353743,0.56399232,68356.0,68320.0,0.5422922]
[1770450353948,0.014639,68357.0,68332.0,0.5276462]
[1770450354153,0.014639,68357.0,68332.0,0.5422902]
[1770450354348,0.014637,68365.0,68344.0,0.5276462]
[1770450354550,0.56399232,68378.0,68344.0,0.5275962]
[1770450354746,0.014638,68360.0,68344.0,0.5275962]
[1770450355456,0.014637,68364.0,68344.0,0.5275962]
[1770450355760,0.014634,68379.0,68355.0,0.5276462]
[1770450355949,0.014634,68379.0,68355.0,0.5422852]
[1770450356150,0.014634,68379.0,68355.0,0.5276462]
[1770450356452,0.014635,68376.0,68355.0,0.5276462]
[1770450356654,0.014634,68381.0,68355.0,0.5276462]
[1770450356852,0.014633,68382.0,68355.0,0.5276462]
[1770450357053,0.014633,68382.0,68356.0,0.5422852]
[1770450357359,0.014634,68379.0,68356.0,0.5276462]
[1770450357652,0.06038547,68372.0,68359.0,0.014638]
[1770450357857,0.014633,68383.0,68356.0,0.5026462]
[1770450358058,0.014634,68380.0,68356.0,0.5026462]
[1770450358261,0.014633,68384.0,68356.0,0.5026462]
[1770450358459,0.014633,68381.0,68356.0,0.5026462]
[1770450358857,0.014634,68378.0,68356.0,0.5026462]
[1770450359061,0.56399232,68391.0,68354.0,0.5276462]
[1770450359656,0.56399232,68391.0,68356.0,0.5276462]
[1770450359857,0.014634,68379.0,68356.0,0.5276462]
[1770450360561,0.014633,68383.0,68356.0,0.5276462]
[1770450360775,0.56399232,68402.0,68364.0,0.5276462]
[1770450360971,0.014632,68388.0,68364.0,0.5422832]
[1770450361368,0.56399232,68416.0,68373.0,0.5276462]
[1770450361673,0.56399232,68427.0,68393.0,0.5276462]
[1770450361868,0.014628,68407.0,68382.0,0.5276462]
[1770450362068,0.01462,68446.0,68396.0,0.5276462]
[1770450362069,0.014624,68425.0,68396.0,0.5276462]
[1770450362273,0.014626,68416.0,68396.0,0.5276462]
[1770450362466,0.014627,68411.0,68396.0,0.5276462]
[1770450362667,0.014625,68420.0,68388.0,0.5276462]
[1770450363470,0.014624,68425.0,68399.0,0.5276462]
[1770450364175,0.001,68427.0,68399.0,0.5276462]
[1770450364376,0.014624,68426.0,68399.0,0.5276462]
[1770450364577,0.014623,68431.0,68401.0,0.5276462]
[1770450364774,0.56399232,68443.0,68403.0,0.5276462]
[1770450364977,0.014622,68433.0,68405.0,0.5276462]
[1770450365274,0.014622,68433.0,68405.0,0.5422742]
[1770450365478,0.014622,68433.0,68405.0,0.5182742]
[1770450365675,0.014625,68419.0,68394.0,0.5276462]
[1770450365881,0.014626,68416.0,68394.0,0.5276462]
[1770450366281,0.014622,68434.0,68404.0,0.55534358]
[1770450366577,0.56436346,68438.0,68404.0,0.55534358]
[1770450366873,0.56436346,68434.0,68404.0,0.55534358]
[1770450367184,0.56436346,68393.0,68339.0,0.28907612]
[1770450367377,0.56436346,68393.0,68277.0,0.07328]
[1770450367378,0.56436346,68391.0,68347.0,0.55234358]
[1770450367574,0.14976947,68357.0,68347.0,0.22719119]
[1770450367882,0.14976947,68357.0,68317.0,0.55534358]
[1770450368078,0.14976947,68340.0,68317.0,0.55534358]
[1770450369082,0.16441147,68340.0,68317.0,0.55534358]
[1770450369386,0.014638,68360.0,68317.0,0.55529358]
[1770450369387,0.01464,68351.0,68317.0,0.55529358]
[1770450369585,0.14976947,68360.0,68317.0,0.55529358]
[1770450369874,0.014641,68347.0,68317.0,0.55529358]
[1770450370081,0.14976947,68360.0,68317.0,0.55529358]
[1770450370473,0.14976947,68360.0,68317.0,0.55629358]
[1770450370681,0.014641,68347.0,68317.0,0.55629358]
[1770450370982,0.14976947,68360.0,68317.0,0.55629358]
[1770450371176,0.14976947,68360.0,68317.0,0.55529358]
[1770450371381,0.014641,68346.0,68320.0,0.54775884]
[1770450371577,0.014641,68346.0,68274.0,0.11904613]
[1770450371782,0.014636,68371.0,43029.0,0.04243814]
[1770450371783,1.43868553,68284.0,68167.0,0.54775884]
[1770450372078,0.55273384,68291.0,68275.0,4.4e-07]
[1770450372274,0.16431945,68279.0,68213.0,0.54775884]
[1770450372475,0.0203,68290.0,68213.0,0.54775884]
[1770450372676,0.0203,68290.0,68169.0,1.5]
[1770450372677,0.55273384,68285.0,68242.0,0.11549894]
[1770450372876,0.55273384,68281.0,68220.0,0.54775884]
[1770450373186,0.55273384,68281.0,68222.0,0.54775884]
[1770450373379,0.55273384,68281.0,68224.0,0.54775884]
[1770450373682,0.06456,68334.0,68224.0,0.54775884]
[1770450373683,0.55273384,68349.0,68243.0,0.54775884]
[1770450373986,0.1505331,68350.0,68240.0,0.1505331]
[1770450373987,0.55293384,68337.0,68261.0,0.54775884]
[1770450374281,0.55293384,68337.0,68263.0,0.54775884]
[1770450374484,0.55293384,68337.0,68260.0,0.1505331]
[1770450374485,0.55273384,68335.0,68265.0,0.54775884]
[1770450374681,0.55273384,68333.0,68267.0,0.54775884]
[1770450374982,0.56749771,68332.0,68269.0,0.54775884]
[1770450375182,0.1505331,68350.0,68269.0,0.54775884]
[1770450375183,0.002,68291.0,68269.0,0.54775884]
[1770450375370,0.002,68291.0,68242.0,0.54775884]
[1770450375575,0.002,68291.0,68244.0,0.54775884]
[1770450375877,0.55273384,68317.0,68246.0,0.54775884]
[1770450376078,0.55273384,68315.0,68248.0,0.54775884]
[1770450376279,0.55273384,68315.0,68252.0,0.54775884]
[1770450376480,0.0002,68357.0,68236.0,0.54775884]
[1770450376481,0.01465,68305.0,68236.0,0.54775884]
[1770450376681,0.014654,68285.0,68237.0,0.22010097]
[1770450376982,0.014655,68280.0,68239.0,0.0002]
[1770450377284,0.55273384,68275.0,68192.0,0.54775884]
[1770450377483,0.55273384,68273.0,68244.0,0.001]
[1770450377677,0.55273384,68273.0,68205.0,0.54775884]
[1770450377883,0.55273384,68273.0,68207.0,0.54775884]
[1770450378080,0.55273384,68273.0,68213.0,0.54775884]
[1770450378281,0.55273384,68271.0,68213.0,0.54775884]
[1770450378584,0.55273384,68269.0,68213.0,0.54775884]
[1770450379279,0.55273384,68269.0,68215.0,0.54775884]
[1770450379487,0.00011987,68268.0,68215.0,0.54775884]
[1770450379686,0.55273384,68269.0,68215.0,0.54775884]
[1770450380082,0.00011987,68268.0,68215.0,0.54775884]
[1770450380291,0.55273384,68301.0,68227.0,0.54795884]
[1770450380486,0.55273384,68281.0,68227.0,0.54795884]
[1770450380782,0.55273384,68297.0,68236.0,0.54775884]
[1770450381084,0.55273384,68297.0,68241.0,0.54775884]
[1770450381387,0.55273384,68297.0,68241.0,0.50775884]
[1770450381681,0.55273384,68297.0,68250.0,0.54775884]
[1770450381883,0.55273384,68297.0,68250.0,0.28520518]
[1770450382089,0.55273384,68295.0,68236.0,0.54775884]
[1770450382387,0.55273384,68293.0,68241.0,0.001]